bitfinex-derivatives/quotes_ETHF0:USTF0_20260121
["timestamp","ask_amount","ask_price","bid_price","bid_amount"]
[1769024162336,2.025,3013.5,3010.9,3.49461315]
[1769024162632,2.98174743,3015.0,3009.2,2.23557778]
[1769024162633,23.289,3015.2,3011.9,3.49461315]
[1769024162834,5.07971425,3016.7,3013.3,3.49461315]
[1769024163033,1.8592777,3016.1,3013.3,3.49718537]
[1769024163233,1.8592777,3015.4,3013.3,3.49718537]
[1769024163426,1.8592777,3016.1,3013.3,3.49718537]
[1769024164140,1.8592777,3015.4,3013.3,3.49718537]
[1769024164334,1.8592777,3014.7,3012.6,3.49461315]
[1769024164534,3.62376568,3015.3,3010.9,3.49461315]
[1769024164836,2.031,3015.4,3011.5,3.49461315]
[1769024165036,1.8592777,3015.0,3012.0,3.49461315]
[1769024165436,2.03,3015.2,3012.0,3.66346844]
[1769024165738,1.8592777,3015.0,3012.0,3.66346844]
[1769024165942,0.05775061,3016.3,3012.6,3.49461315]
[1769024166135,2.03,3016.2,3012.6,3.66071315]
[1769024166331,2.03,3016.2,3013.0,3.49461315]
[1769024166638,1.8592777,3015.8,3013.0,3.49461315]
[1769024166937,5.34389181,3015.8,3013.0,3.49461315]
[1769024167134,1.8592777,3015.1,3013.0,3.49461315]
[1769024167538,5.34389181,3015.8,3013.0,3.49461315]
[1769024167744,0.22365061,3016.3,3013.0,3.49461315]
[1769024168037,0.40876624,3016.7,3013.0,3.49461315]
[1769024168230,0.05775229,3016.5,3013.5,3.49461315]
[1769024168836,0.22364229,3016.5,3013.5,3.49461315]
[1769024169034,1.8592777,3015.9,3013.5,3.49461315]
[1769024169235,1.8592777,3016.4,3013.5,3.49461315]
[1769024170133,3.8992777,3016.4,3013.5,3.49461315]
[1769024170742,2.04,3016.4,3013.5,3.49461315]
[1769024170940,2.04,3016.4,3013.7,3.66065315]
[1769024171747,2.04,3016.4,3013.7,3.49461315]
[1769024172249,1.8592777,3016.1,3013.7,3.49461315]
[1769024172447,1.8592777,3015.4,3013.0,3.49461315]
[1769024172646,2.0252277,3015.4,3013.0,3.49461315]
[1769024172940,6.51320817,3016.6,3013.2,3.49461315]
[1769024173145,1.8592777,3016.1,3013.2,3.49461315]
[1769024173443,5.34389181,3016.1,3013.2,3.49461315]
[1769024173834,2.044,3016.0,3013.5,0.16605]
[1769024174038,0.40876624,3016.7,3013.9,3.49461315]
[1769024174243,2.45276624,3016.7,3013.9,3.66064315]
[1769024174547,0.40876624,3016.7,3014.4,3.66062315]
[1769024174849,0.00387106,3016.7,3015.0,3.49461315]
[1769024176745,0.00387106,3016.7,3014.4,0.00369819]
[1769024176950,0.00387106,3016.7,3014.4,3.58669474]
[1769024178244,1.8592777,3016.1,3014.4,0.00369819]
[1769024178743,0.1659,3016.3,3014.4,0.00369819]
[1769024178940,2.035,3016.2,3014.4,0.00369819]
[1769024179741,3.63835549,3016.7,3014.4,0.00369819]
[1769024179943,0.00387106,3016.7,3014.4,3.58669474]
[1769024182246,2.03187106,3016.7,3014.4,3.58669474]
[1769024182847,0.00387106,3016.7,3014.4,3.58669474]
[1769024183349,1.86314876,3016.7,3014.4,3.58669474]
[1769024183545,1.8592777,3016.0,3014.4,0.00369819]
[1769024183754,0.16595,3015.5,3013.1,3.58299655]
[1769024183947,0.16595,3015.4,3013.1,3.58299655]
[1769024184143,1.8592777,3015.6,3013.1,3.58299655]
[1769024184144,1.8592777,3014.9,3013.1,3.58299655]
[1769024184350,2.026,3014.8,3012.1,3.58299655]
[1769024184548,2.026,3014.8,3012.3,3.58299655]
[1769024184749,2.025,3015.3,3012.5,3.58299655]
[1769024185149,2.025,3015.2,3012.5,3.58299655]
[1769024185349,0.16595,3015.4,3012.5,3.58299655]
[1769024185552,2.026,3015.1,3012.5,3.58299655]
[1769024186152,0.16591,3016.1,3013.2,3.58299655]
[1769024186354,2.024,3016.5,3013.7,3.58299655]
[1769024186555,0.16587,3016.8,3013.9,3.58299655]
[1769024186859,2.024,3016.6,3013.9,3.58299655]
[1769024187055,2.024,3016.6,3014.2,3.58299655]
[1769024187250,0.40622113,3017.3,3014.5,3.58299655]
[1769024187450,0.40622113,3017.3,3014.7,3.58299655]
[1769024187655,2.43422113,3017.3,3014.7,3.58299655]
[1769024187857,0.40622113,3017.3,3015.1,3.58299655]
[1769024188153,0.05771915,3018.2,3015.6,3.58299655]
[1769024188359,2.026,3018.5,3015.9,3.58299655]
[1769024188753,4.45035889,3018.4,3015.2,3.74895655]
[1769024188958,3.63448443,3018.3,3015.4,3.58299655]
[1769024189154,0.00285878,3018.3,3015.4,3.58299655]
[1769024189348,0.76063095,3018.2,3015.4,3.58299655]
[1769024189550,0.76063095,3018.1,3015.4,3.58299655]
[1769024189755,0.76063095,3018.0,3015.4,3.58299655]
[1769024190048,2.026,3018.1,3015.6,3.58299655]
[1769024190253,2.026,3018.1,3015.6,3.74893655]
[1769024190562,0.00285878,3018.3,3016.1,3.58299655]
[1769024191154,0.00285878,3018.3,3016.1,3.74890655]
[1769024191360,0.00285878,3018.3,3016.3,3.58299655]
[1769024191555,0.00285878,3018.3,3016.5,3.58299655]
[1769024192259,0.00285878,3018.3,3016.5,3.74888655]
[1769024192860,5.65648443,3019.8,3016.8,3.58299655]
[1769024193055,0.40240111,3019.1,3016.8,3.58299655]
[1769024193860,0.85362037,3018.8,3016.8,3.58538386]
[1769024195966,2.52952157,3020.8,3017.6,3.58299655]
[1769024196161,0.76084779,3020.7,3018.0,3.74879655]
[1769024196365,0.22332855,3020.7,3018.0,3.58299655]
[1769024196562,2.77765248,3020.6,3018.0,3.58299655]
[1769024196760,2.018,3020.5,3018.0,3.58299655]
[1769024196959,0.00385509,3020.5,3018.0,3.74879655]
[1769024197666,0.00385509,3020.5,3018.2,3.58299655]
[1769024197865,5.64948443,3020.4,3017.5,3.58299655]
[1769024198164,2.015,3020.4,3018.0,3.58299655]
[1769024198364,2.77505193,3020.3,3018.0,3.58299655]
[1769024198564,0.75805193,3020.2,3018.0,3.58299655]
[1769024198864,2.017,3020.1,3018.0,3.58299655]
[1769024199066,0.00385509,3020.5,3018.4,3.74878655]
[1769024199267,0.00385509,3020.5,3018.4,3.58299655]
[1769024199662,2.018,3020.4,3018.4,3.58299655]
[1769024199865,0.00385509,3020.5,3018.8,3.58299655]
[1769024200266,0.00385509,3020.5,3018.8,3.74875655]
[1769024202471,0.00385509,3020.5,3018.8,3.58299655]
[1769024203067,0.00385509,3020.5,3017.8,3.58299655]
[1769024203476,2.01,3020.4,3017.8,3.74881655]
[1769024203868,2.01,3020.4,3017.8,3.58299655]
[1769024204067,0.75112149,3020.3,3017.8,3.58299655]
[1769024204275,0.16569,3020.3,3017.8,3.58299655]
[1769024204677,0.1657,3020.0,3017.8,3.58299655]
[1769024204875,0.16572,3019.6,3017.1,3.58299655]
[1769024205176,3.63448443,3018.5,3016.8,0.00238731]
[1769024205377,28.551,3018.4,3016.8,0.00238731]
[1769024205678,3.60428155,3017.9,3015.2,9.94423614]
[1769024205875,3.60428155,3017.4,3015.2,6.35680752]
[1769024206074,3.77014155,3017.2,3014.5,3.58742862]
[1769024206277,2.015,3017.1,3014.5,3.58742862]
[1769024206575,2.015,3017.0,3014.5,3.58975747]
[1769024207075,0.00275828,3017.1,3014.5,3.58975747]
[1769024207276,2.012,3017.0,3014.5,3.58975747]
[1769024207479,2.012,3017.0,3014.5,3.75575747]
[1769024207666,2.012,3017.0,3014.5,3.58975747]
[1769024207870,4.35608929,3016.9,3014.5,0.00232885]
[1769024208075,3.60428155,3016.8,3014.5,0.00232885]
[1769024208478,3.60428155,3016.6,3014.5,0.00232885]
[1769024209175,0.00275828,3017.1,3014.5,3.58975747]
[1769024209176,3.60703983,3017.1,3014.5,3.58975747]
[1769024209380,2.018,3017.0,3014.5,3.58975747]
[1769024209566,2.017,3016.9,3014.5,3.58975747]
[1769024210975,0.00275828,3017.1,3014.5,3.58975747]
[1769024211275,0.00275828,3017.1,3015.3,3.58742862]
[1769024211580,0.00275828,3017.1,3015.3,3.75337862]
[1769024212475,23.233,3019.1,3016.1,3.58742862]
[1769024212681,2.017,3019.0,3016.3,3.58742862]
[1769024212977,23.233,3019.5,3016.3,3.75332862]
[1769024213177,3.60428155,3019.7,3016.9,3.58742862]
[1769024213379,2.021,3019.6,3017.1,3.58742862]
[1769024213575,3.60428155,3018.3,3015.1,3.58742862]
[1769024213877,3.77003155,3019.0,3015.6,3.58742862]
[1769024214077,25.257,3018.9,3015.6,3.58742862]
[1769024214375,3.60428155,3018.6,3015.6,3.58742862]
[1769024214582,2.026,3018.5,3016.0,3.75334862]
[1769024214880,3.60428155,3019.3,3016.2,3.75332862]
[1769024215076,3.60428155,3019.3,3016.5,3.58742862]
[1769024215383,2.026,3019.2,3016.5,3.58742862]
[1769024215581,2.027,3019.1,3016.5,3.58742862]
[1769024215977,6.68724222,3019.6,3016.7,3.58742862]
[1769024215978,2.026,3019.0,3016.7,3.58742862]
[1769024216279,2.026,3019.0,3015.6,0.00301534]
[1769024216280,3.60428155,3017.7,3015.6,0.00301534]
[1769024216575,2.032,3017.6,3015.6,0.00301534]
[1769024216987,3.60428155,3017.7,3015.6,0.00301534]
[1769024217179,2.034,3017.5,3015.6,3.59044396]
[1769024217373,2.03802511,3017.5,3015.6,3.59044396]
[1769024217679,2.03802511,3017.5,3015.6,0.00301534]
[1769024218278,5.64230666,3017.5,3015.6,0.00301534]
[1769024218583,3.60428155,3017.2,3014.2,3.75344862]
[1769024218980,3.77013155,3017.2,3014.2,3.75344862]
[1769024219188,3.40955452,3017.0,3014.2,3.58742862]
[1769024219385,3.40955452,3016.1,3013.4,3.51346487]
[1769024219586,3.40955452,3016.1,3013.4,3.51691379]
[1769024219884,2.033,3016.0,3013.6,3.67951487]
[1769024220082,3.40955452,3016.8,3013.6,3.67951487]
[1769024220284,3.40955452,3016.8,3013.8,3.51346487]
[1769024220484,2.034,3016.7,3013.8,3.51346487]
[1769024221083,3.40955452,3016.8,3014.0,3.51346487]
[1769024221284,0.00402511,3017.5,3014.0,3.51346487]
[1769024221484,2.037,3016.8,3014.5,3.51346487]
[1769024221683,3.41357963,3017.5,3014.5,3.51346487]
[1769024221878,3.41357963,3017.5,3014.5,3.67946487]
[1769024222082,0.00402511,3017.5,3015.1,3.51346487]
[1769024222385,2.04302511,3017.5,3015.4,3.51346487]
[1769024222778,0.00402511,3017.5,3015.4,3.51346487]
[1769024222979,0.00402511,3017.5,3015.7,0.16593]
[1769024223179,0.00402511,3017.5,3015.8,3.51346487]
[1769024223380,2.04302511,3017.5,3015.7,0.0028636]
[1769024223780,5.45257963,3017.5,3015.7,0.0028636]
[1769024223986,3.40955452,3017.4,3015.7,0.0028636]
[1769024224190,0.00402511,3017.5,3015.7,0.0028636]
[1769024224388,0.00402511,3017.5,3015.7,3.51632847]
[1769024225090,0.00402511,3017.5,3015.7,3.68225847]
[1769024225286,0.00402511,3017.5,3015.9,3.51346487]
[1769024225488,0.00402511,3017.5,3016.2,3.51346487]
[1769024226687,0.00402511,3017.5,3015.7,3.51632847]
[1769024227393,0.00402511,3017.5,3015.7,0.0028636]
[1769024228090,0.00402511,3017.5,3015.7,3.51632847]
[1769024228391,3.40955452,3019.1,3016.2,3.51346487]
[1769024228582,2.033,3019.0,3016.2,3.51346487]
[1769024228779,2.033,3019.0,3016.4,3.51346487]
[1769024228984,2.035,3018.9,3016.6,3.67934487]
[1769024229396,2.03834001,3018.9,3016.6,3.67934487]
[1769024229988,2.03834001,3018.9,3016.6,3.51346487]
[1769024230594,2.034,3018.8,3016.6,3.51346487]
[1769024230789,0.00334001,3018.9,3016.9,3.51346487]
[1769024231090,0.00334001,3018.9,3017.7,3.51346487]
[1769024231487,0.00334001,3018.9,3016.9,0.16587]
[1769024231488,0.00334001,3018.9,3017.0,3.51346487]
[1769024231696,0.00334001,3018.9,3016.3,3.51346487]
[1769024231889,6.5221933,3018.9,3016.3,3.51346487]
[1769024232085,9.93174782,3018.9,3016.3,3.51346487]
[1769024232389,3.57533452,3018.6,3015.7,3.51632847]
[1769024232595,2.78663711,3018.5,3015.7,3.51632847]
[1769024232893,0.75463711,3018.4,3015.7,3.51632847]
[1769024233891,0.75463711,3018.4,3016.3,3.67936487]
[1769024234095,2.042,3018.5,3016.5,3.51346487]
[1769024234596,0.7566473,3018.4,3015.8,3.51346487]
[1769024234792,0.00334001,3018.9,3016.2,0.1659]
[1769024235003,2.79769759,3018.8,3016.3,3.51346487]
[1769024235189,0.75669759,3018.7,3016.3,3.51346487]
[1769024235384,0.00334001,3018.9,3016.3,3.51346487]
[1769024235587,2.79758429,3018.8,3016.3,3.51346487]
[1769024235789,0.75658429,3018.7,3016.3,3.51346487]
[1769024236099,3.86350297,3018.3,3015.7,3.47704755]
[1769024236297,4.62009726,3018.2,3015.7,3.47704755]
[1769024236594,3.69771297,3017.6,3015.7,0.0028636]
[1769024236790,2.79658429,3017.5,3015.7,0.0028636]
[1769024236997,2.04,3017.5,3015.7,0.0028636]
[1769024237386,2.041,3018.2,3015.9,3.47418395]
[1769024237695,2.041,3018.2,3015.9,3.64010395]
[1769024237897,4.45463065,3018.1,3015.7,0.0028636]
[1769024238190,0.16585,3017.4,3014.9,3.47418395]
[1769024238391,0.16586,3017.0,3014.9,3.47418395]
[1769024238591,0.75691768,3016.9,3014.9,3.47418395]
[1769024238790,2.79691768,3016.8,3014.9,3.47418395]
[1769024238991,2.04,3016.8,3014.9,3.47418395]
[1769024239199,2.04,3016.8,3014.9,3.47698801]
[1769024239698,2.04,3016.9,3014.9,3.47698801]
[1769024240190,5.73771297,3016.9,3014.9,0.00280406]
[1769024240397,0.75810147,3016.8,3014.9,0.00280406]
[1769024240597,0.75810147,3016.7,3014.9,0.00280406]
[1769024240790,0.16589,3016.5,3014.9,0.00280406]
[1769024240992,2.79810147,3016.4,3014.9,0.00280406]
[1769024241193,0.00336845,3016.7,3014.9,3.47698801]
[1769024242795,0.00336845,3016.7,3014.9,0.00280406]
[1769024243001,0.75805943,3016.6,3014.9,0.00280406]
[1769024243201,4.6216624,3016.5,3014.9,0.00280406]
[1769024243501,0.75805943,3016.4,3014.9,0.00280406]
[1769024243694,0.75805943,3016.3,3014.9,0.00280406]
[1769024243899,0.00336845,3016.7,3014.9,0.00280406]
[1769024244404,0.00336845,3016.7,3015.4,3.47418395]
[1769024244602,2.04,3017.9,3015.6,3.47418395]
[1769024244803,0.75342051,3017.8,3015.6,3.64012395]
[1769024244996,1.85104617,3017.2,3015.1,3.47418395]
[1769024245192,3.89104617,3017.9,3015.3,3.47418395]
[1769024245392,3.89104617,3017.9,3015.8,3.47418395]
[1769024245393,2.04,3017.9,3015.8,3.47418395]
[1769024245602,0.00278378,3017.9,3016.0,3.47418395]
[1769024245901,2.039,3019.1,3016.9,3.47418395]
[1769024246597,0.75313468,3019.0,3016.9,3.47418395]
[1769024246799,0.75313468,3018.9,3016.9,3.47418395]
[1769024247105,0.00267086,3019.0,3016.9,3.47418395]
[1769024251003,0.00267086,3019.0,3017.3,3.47418395]
[1769024251205,2.76915616,3021.0,3017.3,3.4772728]
[1769024251396,0.75225266,3020.9,3018.4,3.47418395]
[1769024251704,0.377906,3021.3,3019.4,3.47418395]
[1769024251902,0.05764696,3022.0,3019.4,3.47418395]
[1769024251903,1.85104617,3021.4,3019.4,3.47418395]
[1769024252299,0.75081189,3021.3,3018.8,3.47418395]
[1769024252505,0.37660464,3021.4,3018.8,3.47418395]
[1769024252906,0.37660464,3021.4,3019.0,3.47418395]
[1769024253304,2.22765081,3021.4,3019.0,3.47418395]
[1769024253705,4.44741931,3021.3,3019.0,3.47418395]
[1769024253907,0.74970634,3021.2,3019.0,3.47418395]
[1769024254405,0.37660464,3021.4,3019.0,3.47418395]
[1769024254704,0.00280064,3021.4,3019.3,3.47418395]
[1769024254912,0.37765366,3021.4,3019.3,3.47418395]
[1769024255304,0.00280064,3021.4,3019.3,3.47418395]
[1769024255601,0.00280064,3021.4,3019.6,3.47418395]
[1769024255802,0.00280064,3021.4,3019.6,3.6439785]
[1769024256910,0.00280064,3021.4,3019.6,3.4782585]
[1769024257604,0.00280064,3021.4,3019.6,0.00407455]
[1769024258803,0.00280064,3021.4,3019.6,3.4782585]
[1769024259309,0.00280064,3021.4,3019.9,3.47418395]
[1769024260517,1.90867938,3022.6,3020.1,3.47418395]
[1769024260715,2.28023175,3022.6,3020.1,3.47418395]
[1769024261305,5.97794472,3022.6,3020.1,3.47418395]
[1769024261710,3.69771297,3022.5,3020.1,3.47418395]
[1769024261915,3.86327297,3022.5,3020.1,3.47418395]
[1769024262824,0.0036856,3022.6,3020.5,3.47418395]
[1769024263023,0.1655,3023.7,3019.6,0.00407455]
[1769024263024,0.6375158,3025.1,3020.8,3.47418395]
[1769024263326,1.85104617,3023.8,3021.7,3.47418395]
[1769024263822,0.05760202,3023.9,3021.7,3.47418395]
[1769024264025,0.06147737,3023.9,3021.7,3.47418395]
[1769024264227,0.00387535,3023.9,3021.7,3.63978395]
[1769024264824,0.00387535,3023.9,3021.9,3.47418395]
[1769024265023,0.00387535,3023.9,3021.9,3.47774561]
[1769024265627,0.00387535,3023.9,3021.9,3.64333561]
[1769024266324,0.00387535,3023.9,3021.9,3.47774561]
[1769024266631,0.00387535,3023.9,3021.9,0.00356166]
[1769024267232,0.00387535,3023.9,3021.9,3.5710603]
[1769024267532,0.01813107,3024.8,3022.8,3.73303864]
[1769024267922,0.01813107,3024.8,3022.9,0.16554]
[1769024268121,0.01813107,3024.8,3021.9,0.00356166]
[1769024268122,0.01813107,3024.8,3023.1,3.56749864]
[1769024268424,0.82029451,3030.7,3027.4,3.56749864]
[1769024268622,3.49597762,3031.9,3028.4,3.73273864]
[1769024268823,0.00388532,3030.7,3028.4,3.56749864]
[1769024269029,0.00388532,3030.7,3028.4,3.73272864]
[1769024269231,0.05747283,3031.4,3028.9,3.56749864]
[1769024269627,3.49597762,3031.3,3028.2,3.56749864]
[1769024270025,2.187,3032.8,3028.7,3.56749864]
[1769024270026,3.49597762,3032.0,3028.7,3.56749864]
[1769024270236,3.88005286,3032.0,3028.7,3.56749864]
[1769024270531,3.88005286,3032.0,3027.7,3.56749864]
[1769024270532,3.49597762,3031.8,3027.7,3.56749864]
[1769024270721,3.49597762,3031.8,3027.6,0.16528]
[1769024270722,3.49597762,3031.8,3027.9,0.16527]
[1769024270924,3.49597762,3031.8,3028.4,3.56749864]
[1769024271134,3.49597762,3031.8,3028.6,3.56749864]
[1769024271428,3.49597762,3032.5,3029.2,0.16519]
[1769024271626,3.49597762,3032.3,3029.3,3.56749864]
[1769024271930,2.023,3033.1,3027.6,2.01632617]
[1769024271931,0.82841242,3033.4,3031.1,0.16509]
[1769024272233,3.71220887,3035.4,3030.8,1.85104617]
[1769024272234,3.49597762,3034.7,3030.8,1.85104617]
[1769024272430,3.49976399,3034.7,3030.8,1.85511812]
[1769024272633,3.49597762,3034.5,3030.8,0.00407195]
[1769024272831,3.87604617,3034.6,3030.8,0.00407195]
[1769024272832,3.49597762,3033.7,3030.8,0.00407195]
[1769024273133,7.37202379,3033.6,3030.8,0.00407195]
[1769024273427,3.49597762,3033.5,3030.8,0.00407195]
[1769024273930,3.49597762,3034.1,3030.9,0.48106797]
[1769024274330,3.49597762,3033.6,3030.8,0.00407195]
[1769024274932,3.49597762,3033.6,3030.8,0.48513992]
[1769024275530,2.033,3033.5,3030.8,0.48513992]
[1769024275728,3.49597762,3033.4,3030.8,0.48513992]
[1769024276123,0.00378637,3034.7,3030.8,0.48513992]
[1769024276124,3.49597762,3034.2,3030.8,0.48513992]
[1769024276330,3.49597762,3033.1,3030.8,0.00407195]
[1769024276931,1.85104617,3033.6,3030.8,0.53445027]
[1769024276932,3.49597762,3033.6,3030.8,0.53445027]
[1769024277125,3.49597762,3033.6,3030.9,0.53037832]
[1769024277323,3.49597762,3033.6,3031.2,0.16508]
[1769024277531,3.49597762,3034.1,3031.3,0.53037832]
[1769024278032,3.49597762,3034.0,3031.5,0.69544832]
[1769024278228,3.49976399,3034.7,3031.5,0.82884491]
[1769024278432,3.49976399,3034.7,3032.0,0.82884491]
[1769024278828,2.035,3034.6,3032.0,0.82884491]
[1769024279033,3.62307903,3034.6,3032.0,0.82884491]
[1769024279428,2.034,3034.5,3032.0,0.82884491]
[1769024279834,3.62307903,3034.6,3032.0,0.82884491]
[1769024280031,3.62307903,3034.6,3032.2,0.84491393]
[1769024280238,3.62307903,3034.6,3032.2,1.00994393]
[1769024280433,0.00378637,3034.7,3032.2,0.84491393]
[1769024280633,0.00378637,3034.7,3032.9,1.00990393]
[1769024280835,0.00378637,3034.7,3032.9,0.16499]
[1769024281139,0.00378637,3034.7,3032.2,0.84491393]
[1769024281336,3.6268654,3034.7,3031.5,0.84491393]
[1769024282041,3.6268654,3034.7,3032.7,1.00991393]
[1769024282042,0.00378637,3034.7,3032.7,1.00991393]
[1769024282235,3.62307903,3034.6,3032.7,0.165]
[1769024282436,3.62307903,3034.4,3030.8,0.00407195]
[1769024282644,3.62307903,3034.2,3031.0,0.16509]
[1769024282840,1.85104617,3032.9,3030.8,0.00407195]
[1769024283136,3.62307903,3032.8,3030.9,0.1651]
[1769024283342,3.62307903,3033.5,3031.0,0.16509]
[1769024283734,0.05742863,3033.0,3030.8,0.00407195]
[1769024283937,3.62307903,3032.9,3030.9,0.1651]
[1769024284139,3.62307903,3032.9,3030.8,0.00407195]
[1769024284442,3.62307903,3032.7,3030.8,0.00407195]
[1769024284643,3.62307903,3032.5,3030.8,0.00407195]
[1769024284839,3.62657091,3032.5,3030.8,0.00407195]
[1769024285239,3.62307903,3031.9,3029.1,0.1652]
[1769024285447,3.62307903,3031.1,3028.3,0.16524]
[1769024285742,3.62307903,3031.1,3028.9,0.16521]
[1769024285940,3.62307903,3031.8,3028.9,1.04511129]
[1769024286241,3.62307903,3031.6,3029.0,1.04510129]
[1769024286547,3.62307903,3031.6,3029.0,0.87990129]
[1769024287439,1.85104617,3032.1,3029.0,0.87990129]
[1769024287440,2.039,3032.1,3029.0,0.87990129]
[1769024287637,3.62307903,3032.0,3029.6,0.16517]
[1769024287937,3.62307903,3032.0,3029.1,0.1652]
[1769024288537,3.62307903,3032.0,3029.0,0.87990129]
[1769024288743,3.62307903,3031.9,3029.6,0.16517]
[1769024288942,3.62307903,3031.9,3029.0,0.87990129]
[1769024289551,0.00349188,3032.5,3030.4,0.16513]
[1769024289736,5.66407903,3032.4,3029.6,0.16517]
[1769024290048,3.62307903,3032.0,3029.6,0.16517]
[1769024290839,3.62307903,3031.2,3028.9,0.16800061]
[1769024291039,3.62307903,3031.2,3028.9,0.00279061]
[1769024291241,3.62307903,3031.0,3028.9,0.00279061]
[1769024291445,2.043,3030.9,3028.9,0.00279061]
[1769024291644,2.043,3030.8,3028.9,0.00279061]
[1769024292350,2.043,3030.7,3028.9,0.00279061]
[1769024292849,5.66607903,3030.7,3028.9,0.00279061]
[1769024293046,5.66607903,3030.6,3028.9,0.00279061]
[1769024293250,5.66707903,3030.5,3028.9,0.00279061]
[1769024293750,3.62307903,3030.4,3027.4,0.85313151]
[1769024294049,3.62307903,3030.4,3027.6,0.16528]
[1769024294850,3.62307903,3031.1,3027.7,0.88106924]
[1769024295051,2.055,3030.3,3027.7,0.88106924]
[1769024295251,3.62307903,3030.2,3027.7,0.88106924]
[1769024295449,2.057,3030.1,3027.7,0.88106924]
[1769024295952,0.00348928,3030.3,3028.4,0.16524]
[1769024295953,2.057,3030.0,3028.4,0.16524]
[1769024296351,0.00348928,3030.3,3028.4,0.16524]
[1769024296550,2.05848928,3030.3,3028.7,0.16522]
[1769024296747,0.00348928,3030.3,3028.7,0.87336734]
[1769024296949,3.68859272,3032.8,3030.2,0.16514]
[1769024297151,1.88,3032.1,3030.2,0.16514]
[1769024297853,1.88387047,3032.1,3030.2,0.16868188]
[1769024298055,0.00387047,3032.1,3030.2,0.16868188]
[1769024298455,2.056,3032.0,3030.2,0.16868188]
[1769024298652,0.00387047,3032.1,3030.2,0.16868188]
[1769024299051,2.055,3032.0,3030.2,0.00354188]
[1769024299252,0.00387047,3032.1,3030.2,0.00354188]
[1769024299458,0.00387047,3032.1,3030.3,0.87023303]
[1769024299756,0.00387047,3032.1,3030.3,1.03536303]
[1769024299952,0.00387047,3032.1,3030.4,0.16513]
[1769024300153,0.00387047,3032.1,3030.8,0.16511]
[1769024300353,3.36105943,3033.5,3031.2,0.87383749]
[1769024300557,3.36105943,3034.2,3031.8,0.16505]
[1769024300747,3.36105943,3034.2,3031.2,0.87383749]
[1769024300952,2.054,3034.1,3032.1,0.16504]
[1769024301158,3.36105943,3034.0,3031.2,1.03891749]
[1769024301359,3.365253,3034.0,3031.2,1.03891749]
[1769024301559,3.365253,3034.0,3030.3,1.0663797]
[1769024301560,3.365253,3034.0,3031.3,0.86996702]
[1769024301761,2.053,3033.9,3031.3,0.86996702]
[1769024302053,3.365253,3034.0,3030.2,0.00354188]
[1769024302054,0.00419357,3034.0,3031.7,0.86996702]
[1769024302253,0.00419357,3034.0,3032.7,0.84040866]
[1769024302454,2.01586617,3036.1,3032.7,0.84040866]
[1769024302455,0.32562225,3036.1,3033.7,0.83621509]
[1769024302655,2.053,3036.4,3033.7,0.83621509]
[1769024302855,3.36105943,3036.1,3033.9,0.16494]
[1769024303057,2.057,3036.0,3032.9,0.83621509]
[1769024303265,3.36105943,3036.1,3034.0,0.16493]
[1769024303459,0.00296983,3036.0,3034.0,1.00114509]
[1769024303664,3.36402926,3036.0,3033.3,0.83621509]
[1769024304266,3.10786926,3036.0,3033.2,0.16498]
[1769024304663,2.056,3035.9,3033.2,0.16498]
[1769024305259,2.05857882,3035.9,3033.2,0.16498]
[1769024305472,0.00257882,3035.9,3033.9,0.16494]
[1769024305677,0.00257882,3035.9,3033.9,1.18735623]
[1769024305868,1.85362499,3035.9,3033.0,0.16499]
[1769024306170,2.057,3035.8,3033.1,0.16498]
[1769024306361,3.36105943,3035.7,3033.1,0.16498]
[1769024306763,3.36105943,3035.7,3033.3,0.16497]
[1769024307066,5.41805943,3035.6,3033.3,0.16497]
[1769024307262,3.36105943,3035.5,3032.7,0.00237631]
[1769024307762,3.36105943,3035.5,3032.7,1.03303164]
[1769024308367,3.36105943,3035.5,3033.6,0.16495]
[1769024308964,0.00257882,3035.9,3033.7,0.16495]
[1769024309165,3.36363825,3035.9,3034.0,0.16493]
[1769024309766,3.36363825,3035.9,3034.1,0.16493]
[1769024310371,3.36363825,3035.9,3033.3,0.88123907]
[1769024310968,3.36363825,3035.9,3034.0,0.16493]
[1769024311265,3.36363825,3035.9,3033.3,0.88123907]
[1769024311466,0.00257882,3035.9,3033.3,0.88123907]
[1769024311664,0.00257882,3035.9,3034.1,0.81298583]
[1769024311866,0.00257882,3035.9,3034.9,0.16488]
[1769024312067,0.00257882,3035.9,3034.9,0.16839234]
[1769024312269,0.00257882,3035.9,3034.9,0.00351234]
[1769024313762,3.36363825,3035.9,3033.8,0.16494]
[1769024313962,3.36363825,3035.9,3033.2,0.74307302]
[1769024314162,3.36363825,3035.9,3033.1,0.16498]
[1769024314560,3.36105943,3035.4,3033.0,0.85627059]
[1769024314767,3.36105943,3035.2,3033.0,0.85950441]
[1769024315366,3.36105943,3035.2,3031.0,40.8]
[1769024315367,3.36105943,3034.6,3031.0,0.9005419]
[1769024315567,3.36105943,3034.4,3031.0,0.16509]
[1769024315868,0.00257882,3035.9,3029.0,1.59495631]
[1769024315869,3.36105943,3033.0,3029.0,1.59495631]
[1769024316061,3.36105943,3033.0,3028.7,40.8]
[1769024316062,3.36105943,3033.0,3030.7,0.16511]
[1769024316269,3.36105943,3033.7,3031.1,0.16509]
[1769024316568,3.36344152,3033.7,3031.4,0.16508]
[1769024316762,3.36344152,3033.7,3031.1,1.59243779]
[1769024316966,3.36344152,3033.7,3031.1,0.00280554]
[1769024317372,3.36344152,3033.7,3031.1,1.59243779]
[1769024317568,3.36344152,3033.7,3031.1,0.00280554]
[1769024317975,3.36344152,3033.7,3031.1,0.16789554]
[1769024318467,3.36105943,3033.5,3031.1,0.00280554]
[1769024318674,3.36105943,3033.3,3029.8,1.69853371]
[1769024318873,3.52604943,3033.0,3029.1,1.69853371]
[1769024319074,3.36105943,3032.8,3029.4,0.16518]
[1769024319269,3.36105943,3032.3,3029.1,1.69853371]
[1769024319678,3.36105943,3032.3,3029.7,0.16517]
[1769024319876,3.36105943,3032.3,3029.8,0.16516]
[1769024320076,3.36344152,3033.7,3030.8,1.82615451]
[1769024320279,3.36344152,3033.7,3031.2,0.16509]
[1769024320473,3.36344152,3033.7,3031.4,0.16507]
[1769024320668,3.36344152,3033.7,3031.4,0.16910876]
[1769024321173,0.00238209,3033.7,3031.5,1.82615451]
[1769024321677,0.00238209,3033.7,3032.2,0.16503]
[1769024321971,0.00238209,3033.7,3031.4,0.00403876]
[1769024321972,3.36105943,3035.2,3032.5,1.77406883]
[1769024322969,3.36489648,3035.2,3032.6,0.16501]
[1769024323574,3.36489648,3035.2,3031.9,1.77406883]
[1769024323769,3.36489648,3035.2,3032.0,0.16504]
[1769024323971,3.36489648,3035.2,3032.1,0.16504]
[1769024324370,3.36489648,3035.2,3031.9,1.77406883]
[1769024324571,3.36489648,3035.2,3032.4,0.16502]
[1769024324987,3.36489648,3035.2,3031.9,1.77406883]